[Event "European-ch Seniors 2018"]
[Site "Drammen"]
[Date "2018.08.07"]
[Round "4"]
[White "Lederman, Leon S"]
[Black "Renman, Nils-Gustaf"]
[Result "1/2-1/2"]
[ECO "C19"]
[WhiteElo "2245"]
[BlackElo "2348"]
[Annotator "NA"]
[PlyCount "87"]
[EventDate "2018.08.04"]
[EventType "swiss"]
[EventCountry "NOR"]
[SourceTitle "playchess.com"]
[Source "ChessBase"]
[SourceQuality "1"]
[TimeControl "40/5400+30:1800+30"]

1. e4 {[%emt 0:00:00]} e6 {[%emt 0:00:00]} 2. d4 {[%emt 0:00:00]} d5 {[%emt 0:00:00]} 3. Nc3 {[%emt 0:00:00]} Bb4 {[%emt 0:00:00]} 4. e5 {[%emt 0:00:00]} Ne7 {[%emt 0:00:13]} 5. a3 {[%emt 0:00:00]} Bxc3+ {[%emt 0:00:08]} 6. bxc3 {[%emt 0:00:00]} c5 {[%emt 0:00:10]} 7. a4 {[%emt 0:01:00]} b6 {[%emt 0:03:04]} 8. a5 {[%emt 0:02:43]} bxa5 {[%emt 0:11:12]} 9. Ba3 {[%emt 0:00:16]} Nd7 {[%emt 0:00:57]} 10. Nf3 {[%emt 0:06:32]} Qc7 {[%emt 0:11:06]} 11. Qd2 {[%emt 0:03:28]} Rb8 {[%emt 0:01:56]} 12. Bd3 {[%emt 0:01:27]} Rb6 {[%emt 0:01:16]} 13. Qg5 {[%emt 0:04:06]} Kf8 {[%emt 0:06:39]} 14. Qh5 {[%emt 0:07:45]} h6 {[%emt 0:01:35]} 15. O-O {[%emt 0:12:16]} Ba6 {[%emt 0:00:33]} 16. Rfc1 {[%emt 0:03:07]} Kg8 {[%emt 0:16:02]} 17. Qh4 {[%emt 0:07:29]} g5 {[%emt 0:02:20]} 18. Qh5 {[%emt 0:02:33]} Bxd3 {[%emt 0:03:19]} 19. cxd3 {[%emt 0:00:16]} Ng6 {[%emt 0:00:05]} 20. g3 {[%emt 0:01:07]} Kg7 {[%emt 0:04:09]} 21. c4 {[%emt 0:04:09]} dxc4 {[%emt 0:04:35]} 22. Rxc4 {[%emt 0:00:14]} Qb8 {[%emt 0:00:32]} 23. Rac1 {[%emt 0:10:46]} Rb1 {[%emt 0:01:48]} 24. Bxc5 {[%emt 0:04:33]} Rxc1+ {[%emt 0:03:57]} 25. Rxc1 {[%emt 0:01:04]} Qb2 {[%emt 0:01:55]} 26. Rc4 {[%emt 0:07:12]} Qb1+ {[%emt 0:01:04]} 27. Kg2 {[%emt 0:00:05]} Qxd3 {[%emt 0:00:16]} 28. Rc1 {[%emt 0:02:57]} Rc8 {[%emt 0:06:39]} 29. Qg4 {[%emt 0:02:59]} Nxc5 {[%emt 0:05:50]} 30. dxc5 {[%emt 0:00:33]} Qd5 {[%emt 0:00:14]} 31. Qd4 {[%emt 0:04:52]} Qxd4 {[%emt 0:02:20]} 32. Nxd4 {[%emt 0:00:02]} Nxe5 {[%emt 0:00:09]} 33. c6 {[%emt 0:00:38]} Nd3 {[%emt 0:00:18]} 34. Rc4 {[%emt 0:05:12]} Nb4 {[%emt 0:01:10]} 35. Rc5 {[%emt 0:01:04]} a6 {[%emt 0:07:18]} 36. Kf3 {[%emt 0:01:17]} e5 {[%emt 0:02:17]} 37. Rxe5 {[%emt 0:00:16]} Nxc6 {[%emt 0:00:04]} 38. Nxc6 {[%emt 0:00:05]} Rxc6 {[%emt 0:00:07]} 39. Rxa5 {[%emt 0:00:01]} Kg6 {[%emt 0:02:21]} 40. h4 {[%emt 0:00:00]} f6 {[%emt 0:00:00]} 41. Kg4 {[%emt 0:10:17]} f5+ {[%emt 0:09:33]} 42. Kf3 {[%emt 0:04:07]} Rf6 {[%emt 0:00:31]} 43. hxg5 {[%emt 0:02:33]} hxg5 {[%emt 0:01:04]} 44. g4 {[%emt 0:00:20]} 1/2-1/2

[Event "European-ch Seniors 2018"]
[Site "Drammen"]
[Date "2018.08.07"]
[Round "4"]
[White "Furman, Boris"]
[Black "Anguera Maestro, Jaime"]
[Result "1/2-1/2"]
[ECO "D30"]
[WhiteElo "2242"]
[BlackElo "2042"]
[Annotator "NA"]
[PlyCount "84"]
[EventDate "2018.08.04"]
[EventType "swiss"]
[EventCountry "NOR"]
[SourceTitle "playchess.com"]
[Source "ChessBase"]
[SourceQuality "1"]
[TimeControl "40/5400+30:1800+30"]

1. d4 {[%emt 0:00:00]} d5 {[%emt 0:00:00]} 2. c4 {[%emt 0:00:00]} e6 {[%emt 0:00:00]} 3. cxd5 {[%emt 0:00:00]} exd5 {[%emt 0:00:00]} 4. Nc3 {[%emt 0:00:05]} c6 {[%emt 0:00:04]} 5. Qc2 {[%emt 0:00:17]} g6 {[%emt 0:02:44]} 6. Bf4 {[%emt 0:00:16]} Bf5 {[%emt 0:01:49]} 7. Qd2 {[%emt 0:00:21]} Nd7 {[%emt 0:00:40]} 8. f3 {[%emt 0:02:27]} Ngf6 {[%emt 0:06:29]} 9. g4 {[%emt 0:00:42]} Be6 {[%emt 0:00:39]} 10. e3 {[%emt 0:06:48]} Nb6 {[%emt 0:05:20]} 11. Bd3 {[%emt 0:03:56]} Bd6 {[%emt 0:06:23]} 12. Nge2 {[%emt 0:03:10]} Qe7 {[%emt 0:16:30]} 13. Rc1 {[%emt 0:06:37]} Rc8 {[%emt 0:19:15]} 14. h4 {[%emt 0:03:20]} h5 {[%emt 0:00:39]} 15. g5 {[%emt 0:00:25]} Nfd7 {[%emt 0:00:25]} 16. Bxd6 {[%emt 0:03:39]} Qxd6 {[%emt 0:00:02]} 17. Nf4 {[%emt 0:03:06]} Nf8 {[%emt 0:07:31]} 18. a3 {[%emt 0:04:35]} Rd8 {[%emt 0:01:51]} 19. Kf2 {[%emt 0:03:06]} Bc8 {[%emt 0:01:41]} 20. Nce2 {[%emt 0:01:38]} Ne6 {[%emt 0:01:33]} 21. Qa5 {[%emt 0:02:08]} O-O {[%emt 0:08:46]} 22. Qxa7 {[%emt 0:02:13]} Nd7 {[%emt 0:01:59]} 23. Qa4 {[%emt 0:04:55]} Rfe8 {[%emt 0:03:07]} 24. Bb1 {[%emt 0:06:10]} Ndf8 {[%emt 0:00:38]} 25. Qb4 {[%emt 0:05:10]} Qxb4 {[%emt 0:04:21]} 26. axb4 {[%emt 0:00:27]} Nxf4 {[%emt 0:00:28]} 27. Nxf4 {[%emt 0:00:09]} Ne6 {[%emt 0:01:46]} 28. Nd3 {[%emt 0:03:50]} Ng7 {[%emt 0:01:00]} 29. Ne5 {[%emt 0:00:52]} Bf5 {[%emt 0:00:32]} 30. Ba2 {[%emt 0:00:26]} Be6 {[%emt 0:03:02]} 31. Rc5 {[%emt 0:02:41]} Nf5 {[%emt 0:02:32]} 32. b5 {[%emt 0:01:02]} cxb5 {[%emt 0:01:01]} 33. Rxb5 {[%emt 0:00:27]} Re7 {[%emt 0:01:04]} 34. Rc5 {[%emt 0:02:08]} Kg7 {[%emt 0:00:41]} 35. Bb1 {[%emt 0:01:07]} Nd6 {[%emt 0:00:19]} 36. Bd3 {[%emt 0:01:03]} Ra8 {[%emt 0:01:05]} 37. Rhc1 {[%emt 0:02:04]} Ra2 {[%emt 0:00:26]} 38. R1c2 {[%emt 0:01:23]} Ra1 {[%emt 0:00:18]} 39. e4 {[%emt 0:04:18]} Rh1 {[%emt 0:01:08]} 40. exd5 {[%emt 0:00:00]} Bf5 {[%emt 0:00:00]} 41. Bxf5 {[%emt 0:08:17]} Nxf5 {[%emt 0:00:21]} 42. Rc7 {[%emt 0:03:19]} Rh2+ {[%emt 0:01:01]} 1/2-1/2

[Event "European-ch Seniors 2018"]
[Site "Drammen"]
[Date "2018.08.07"]
[Round "4"]
[White "Karason, Askell Orn"]
[Black "Stebbings, Anthony"]
[Result "1/2-1/2"]
[ECO "E21"]
[WhiteElo "2217"]
[BlackElo "2265"]
[Annotator "NA"]
[PlyCount "73"]
[EventDate "2018.08.04"]
[EventType "swiss"]
[EventCountry "NOR"]
[SourceTitle "playchess.com"]
[Source "ChessBase"]
[SourceQuality "1"]
[TimeControl "40/5400+30:1800+30"]

1. d4 {[%emt 0:00:00]} Nf6 {[%emt 0:00:00]} 2. c4 {[%emt 0:00:00]} e6 {[%emt 0:00:00]} 3. Nc3 {[%emt 0:00:00]} Bb4 {[%emt 0:00:00]} 4. Nf3 {[%emt 0:00:00]} c5 {[%emt 0:00:00]} 5. g3 {[%emt 0:00:00]} Bxc3+ {[%emt 0:00:09]} 6. bxc3 {[%emt 0:00:00]} Qa5 {[%emt 0:00:05]} 7. Bd2 {[%emt 0:00:19]} b6 {[%emt 0:00:16]} 8. Bg2 {[%emt 0:00:39]} Bb7 {[%emt 0:00:08]} 9. O-O {[%emt 0:01:01]} O-O {[%emt 0:00:42]} 10. d5 {[%emt 0:13:26]} Qa6 {[%emt 0:06:23]} 11. Bg5 {[%emt 0:13:27]} Ne4 {[%emt 0:00:51]} 12. Qc2 {[%emt 0:03:39]} f5 {[%emt 0:10:20]} 13. Bf4 {[%emt 0:08:21]} Qxc4 {[%emt 0:29:15]} 14. Ne5 {[%emt 0:10:28]} Qa6 {[%emt 0:00:09]} 15. dxe6 {[%emt 0:04:22]} d5 {[%emt 0:14:24]} 16. f3 {[%emt 0:02:17]} Nd6 {[%emt 0:04:51]} 17. Nd7 {[%emt 0:00:28]} Nxd7 {[%emt 0:00:10]} 18. Bxd6 {[%emt 0:00:05]} Rf6 {[%emt 0:00:27]} 19. exd7 {[%emt 0:00:57]} Rxd6 {[%emt 0:00:04]} 20. Qxf5 {[%emt 0:01:07]} Rf8 {[%emt 0:03:15]} 21. Qe5 {[%emt 0:00:50]} Rxd7 {[%emt 0:00:51]} 22. Qe6+ {[%emt 0:07:50]} Rdf7 {[%emt 0:00:04]} 23. f4 {[%emt 0:01:52]} Kh8 {[%emt 0:07:11]} 24. Bxd5 {[%emt 0:01:37]} Bxd5 {[%emt 0:00:05]} 25. Qxd5 {[%emt 0:00:02]} Qxe2 {[%emt 0:00:22]} 26. Rae1 {[%emt 0:01:03]} Qb5 {[%emt 0:00:17]} 27. Re6 {[%emt 0:02:25]} Rd7 {[%emt 0:07:53]} 28. Qe5 {[%emt 0:06:29]} Rd2 {[%emt 0:03:09]} 29. Re7 {[%emt 0:01:15]} Rg8 {[%emt 0:00:03]} 30. Rf2 {[%emt 0:09:34]} Qb1+ {[%emt 0:00:38]} 31. Kg2 {[%emt 0:00:22]} Rxf2+ {[%emt 0:00:33]} 32. Kxf2 {[%emt 0:00:04]} Qxa2+ {[%emt 0:00:11]} 33. Kf3 {[%emt 0:03:26]} Qxh2 {[%emt 0:01:07]} 34. Rxg7 {[%emt 0:00:59]} Qh1+ {[%emt 0:01:30]} 35. Kf2 {[%emt 0:00:04]} Rxg7 {[%emt 0:01:59]} 36. Qe8+ {[%emt 0:00:06]} Rg8 {[%emt 0:00:05]} 37. Qe5+ {[%emt 0:00:07]} 1/2-1/2

[Event "European-ch Seniors 2018"]
[Site "Drammen"]
[Date "2018.08.07"]
[Round "4"]
[White "Biro, Sandor"]
[Black "Johansen, Arild"]
[Result "1-0"]
[ECO "B30"]
[WhiteElo "2193"]
[BlackElo "1935"]
[Annotator "NA"]
[PlyCount "63"]
[EventDate "2018.08.04"]
[EventType "swiss"]
[EventCountry "NOR"]
[SourceTitle "playchess.com"]
[Source "ChessBase"]
[SourceQuality "1"]
[TimeControl "40/5400+30:1800+30"]

1. e4 {[%emt 0:00:00]} c5 {[%emt 0:00:29]} 2. Nf3 {[%emt 0:00:00]} Nc6 {[%emt 0:00:27]} 3. c3 {[%emt 0:00:00]} Nf6 {[%emt 0:01:03]} 4. e5 {[%emt 0:00:11]} Nd5 {[%emt 0:01:16]} 5. Bc4 {[%emt 0:02:29]} e6 {[%emt 0:02:54]} 6. O-O {[%emt 0:00:19]} Be7 {[%emt 0:01:54]} 7. d4 {[%emt 0:00:33]} cxd4 {[%emt 0:05:00]} 8. cxd4 {[%emt 0:00:07]} d6 {[%emt 0:00:42]} 9. Qe2 {[%emt 0:00:54]} Nb6 {[%emt 0:05:44]} 10. Bb3 {[%emt 0:00:24]} d5 {[%emt 0:03:51]} 11. Nc3 {[%emt 0:00:58]} O-O {[%emt 0:03:07]} 12. Rd1 {[%emt 0:05:19]} Bd7 {[%emt 0:04:18]} 13. Bc2 {[%emt 0:02:46]} Nb4 {[%emt 0:12:36]} 14. Bb1 {[%emt 0:00:49]} Na4 {[%emt 0:01:25]} 15. Nxa4 {[%emt 0:01:59]} Bxa4 {[%emt 0:00:25]} 16. b3 {[%emt 0:00:09]} Bd7 {[%emt 0:03:48]} 17. a3 {[%emt 0:02:00]} Nc6 {[%emt 0:01:17]} 18. Qd3 {[%emt 0:00:38]} g6 {[%emt 0:00:32]} 19. Bh6 {[%emt 0:00:16]} Re8 {[%emt 0:00:26]} 20. Qe3 {[%emt 0:00:28]} f5 {[%emt 0:04:45]} 21. exf6 {[%emt 0:04:48]} Bxf6 {[%emt 0:00:19]} 22. Ne5 {[%emt 0:00:59]} Nxe5 {[%emt 0:06:11]} 23. dxe5 {[%emt 0:00:16]} Bg7 {[%emt 0:00:33]} 24. Bf4 {[%emt 0:03:05]} Qb6 {[%emt 0:02:42]} 25. Qg3 {[%emt 0:01:52]} Rf8 {[%emt 0:03:35]} 26. h4 {[%emt 0:05:47]} Rf7 {[%emt 0:04:55]} 27. Bd3 {[%emt 0:12:54]} Raf8 {[%emt 0:05:20]} 28. Be3 {[%emt 0:04:20]} Qc7 {[%emt 0:04:15]} 29. f4 {[%emt 0:03:38]} a6 {[%emt 0:01:57]} 30. h5 {[%emt 0:06:32]} gxh5 {[%emt 0:05:57]} 31. Qh3 {[%emt 0:04:44]} Bh6 {[%emt 0:08:12]} 32. Qxh5 {[%emt 0:00:38]} 1-0

[Event "European-ch Seniors 2018"]
[Site "Drammen"]
[Date "2018.08.07"]
[Round "4"]
[White "Gayson, Peter M"]
[Black "Bjerke, Richard"]
[Result "1/2-1/2"]
[ECO "C56"]
[WhiteElo "2150"]
[BlackElo "2141"]
[Annotator "NA"]
[PlyCount "37"]
[EventDate "2018.08.04"]
[EventType "swiss"]
[EventCountry "NOR"]
[SourceTitle "playchess.com"]
[Source "ChessBase"]
[SourceQuality "1"]
[TimeControl "40/5400+30:1800+30"]

1. e4 {[%emt 0:00:00]} e5 {[%emt 0:00:00]} 2. Nf3 {[%emt 0:00:02]} Nc6 {[%emt 0:00:32]} 3. d4 {[%emt 0:00:36]} exd4 {[%emt 0:00:21]} 4. Bc4 {[%emt 0:00:21]} Nf6 {[%emt 0:01:46]} 5. O-O {[%emt 0:00:18]} Nxe4 {[%emt 0:01:12]} 6. Re1 {[%emt 0:00:28]} d5 {[%emt 0:00:14]} 7. Bxd5 {[%emt 0:00:10]} Qxd5 {[%emt 0:01:13]} 8. Nc3 {[%emt 0:00:14]} Qh5 {[%emt 0:01:39]} 9. Nxe4 {[%emt 0:01:07]} Be6 {[%emt 0:01:31]} 10. Bg5 {[%emt 0:00:32]} Bd6 {[%emt 0:03:32]} 11. Nxd6+ {[%emt 0:01:06]} cxd6 {[%emt 0:00:33]} 12. Bf4 {[%emt 0:00:11]} Qd5 {[%emt 0:01:47]} 13. c3 {[%emt 0:00:16]} Rc8 {[%emt 0:07:58]} 14. Nxd4 {[%emt 0:03:43]} Nxd4 {[%emt 0:02:07]} 15. Qxd4 {[%emt 0:00:41]} Qxd4 {[%emt 0:02:17]} 16. cxd4 {[%emt 0:00:06]} d5 {[%emt 0:00:59]} 17. Rac1 {[%emt 0:03:44]} Kd7 {[%emt 0:05:20]} 18. Rxc8 {[%emt 0:01:45]} Rxc8 {[%emt 0:00:47]} 19. Rc1 {[%emt 0:00:15]} 1/2-1/2

[Event "European-ch Seniors 2018"]
[Site "Drammen"]
[Date "2018.08.07"]
[Round "4"]
[White "Jensen, Thore Nyboe"]
[Black "Blomstrom, Lars"]
[Result "0-1"]
[ECO "B10"]
[WhiteElo "2083"]
[BlackElo "2167"]
[Annotator "NA"]
[PlyCount "54"]
[EventDate "2018.08.04"]
[EventType "swiss"]
[EventCountry "NOR"]
[SourceTitle "playchess.com"]
[Source "ChessBase"]
[SourceQuality "1"]
[TimeControl "40/5400+30:1800+30"]

1. e4 {[%emt 0:00:00]} c6 {[%emt 0:00:00]} 2. Nc3 {[%emt 0:01:14]} d5 {[%emt 0:00:22]} 3. Nf3 {[%emt 0:00:08]} dxe4 {[%emt 0:01:56]} 4. Nxe4 {[%emt 0:00:06]} Nf6 {[%emt 0:00:06]} 5. Nxf6+ {[%emt 0:04:55]} exf6 {[%emt 0:00:03]} 6. d4 {[%emt 0:00:59]} Bd6 {[%emt 0:03:06]} 7. Be2 {[%emt 0:05:01]} O-O {[%emt 0:00:50]} 8. O-O {[%emt 0:00:06]} Re8 {[%emt 0:04:31]} 9. Be3 {[%emt 0:02:09]} Nd7 {[%emt 0:10:34]} 10. c4 {[%emt 0:08:58]} Nf8 {[%emt 0:06:04]} 11. Ne1 {[%emt 0:02:21]} f5 {[%emt 0:03:35]} 12. Nd3 {[%emt 0:05:10]} Ng6 {[%emt 0:00:36]} 13. Re1 {[%emt 0:24:55]} f4 {[%emt 0:21:25]} 14. Bd2 {[%emt 0:00:19]} Bf5 {[%emt 0:00:26]} 15. Bf1 {[%emt 0:08:55]} Qf6 {[%emt 0:01:40]} 16. Bc3 {[%emt 0:01:51]} Qg5 {[%emt 0:00:10]} 17. Qd2 {[%emt 0:12:49]} Nh4 {[%emt 0:06:00]} 18. Kh1 {[%emt 0:00:16]} Be4 {[%emt 0:10:41]} 19. f3 {[%emt 0:00:35]} Bxd3 {[%emt 0:05:43]} 20. Bxd3 {[%emt 0:01:39]} Re3 {[%emt 0:02:08]} 21. Re2 {[%emt 0:06:19]} Rae8 {[%emt 0:04:55]} 22. Rae1 {[%emt 0:08:57]} Qe7 {[%emt 0:03:16]} 23. d5 {[%emt 0:01:59]} c5 {[%emt 0:04:00]} 24. Rxe3 {[%emt 0:01:09]} fxe3 {[%emt 0:00:27]} 25. Qc2 {[%emt 0:00:52]} Qg5 {[%emt 0:01:26]} 26. Rf1 {[%emt 0:00:36]} e2 {[%emt 0:00:37]} 27. Bxe2 {[%emt 0:00:06]} Qxg2# {[%emt 0:00:04]} 0-1

[Event "European-ch Seniors 2018"]
[Site "Drammen"]
[Date "2018.08.07"]
[Round "4"]
[White "Goncharov, Viktor"]
[Black "Barle, Janez"]
[Result "0-1"]
[ECO "D31"]
[WhiteElo "2041"]
[BlackElo "2249"]
[Annotator "NA"]
[PlyCount "82"]
[EventDate "2018.08.04"]
[EventType "swiss"]
[EventCountry "NOR"]
[SourceTitle "playchess.com"]
[Source "ChessBase"]
[SourceQuality "1"]
[TimeControl "40/5400+30:1800+30"]

1. d4 {[%emt 0:00:00]} d5 {[%emt 0:00:22]} 2. c4 {[%emt 0:00:19]} e6 {[%emt 0:01:46]} 3. Nc3 {[%emt 0:00:44]} Bb4 {[%emt 0:02:08]} 4. Qb3 {[%emt 0:04:46]} Nc6 {[%emt 0:00:50]} 5. Nf3 {[%emt 0:01:11]} Nf6 {[%emt 0:05:10]} 6. Bd2 {[%emt 0:05:04]} O-O {[%emt 0:04:49]} 7. e3 {[%emt 0:01:41]} a5 {[%emt 0:11:49]} 8. Rd1 {[%emt 0:08:33]} Ne4 {[%emt 0:18:49]} 9. cxd5 {[%emt 0:00:30]} Nxd2 {[%emt 0:15:09]} 10. Nxd2 {[%emt 0:09:33]} exd5 {[%emt 0:01:06]} 11. a3 {[%emt 0:03:37]} a4 {[%emt 0:19:21]} 12. Qc2 {[%emt 0:04:16]} Ba5 {[%emt 0:05:16]} 13. Bd3 {[%emt 0:05:01]} Re8 {[%emt 0:00:32]} 14. Bxh7+ {[%emt 0:04:06]} Kh8 {[%emt 0:00:09]} 15. Nf3 {[%emt 0:00:03]} Bg4 {[%emt 0:01:15]} 16. Bf5 {[%emt 0:00:28]} Bxf3 {[%emt 0:01:11]} 17. gxf3 {[%emt 0:02:58]} Qh4 {[%emt 0:01:08]} 18. O-O {[%emt 0:03:45]} Ne7 {[%emt 0:00:31]} 19. Kh1 {[%emt 0:11:51]} g6 {[%emt 0:01:08]} 20. Bd3 {[%emt 0:00:30]} Qh3 {[%emt 0:00:26]} 21. Qe2 {[%emt 0:07:02]} c6 {[%emt 0:01:03]} 22. Rg1 {[%emt 0:00:40]} Bc7 {[%emt 0:00:09]} 23. f4 {[%emt 0:01:01]} f5 {[%emt 0:00:41]} 24. Rg3 {[%emt 0:01:58]} Qh4 {[%emt 0:00:14]} 25. Qf3 {[%emt 0:04:05]} Kg7 {[%emt 0:00:19]} 26. Rh3 {[%emt 0:02:41]} Qf6 {[%emt 0:00:11]} 27. Rg1 {[%emt 0:00:20]} Rh8 {[%emt 0:00:13]} 28. Rxh8 {[%emt 0:02:17]} Kxh8 {[%emt 0:00:25]} 29. Rc1 {[%emt 0:09:34]} Bd6 {[%emt 0:01:43]} 30. Kg2 {[%emt 0:00:59]} Kg7 {[%emt 0:00:06]} 31. Qg3 {[%emt 0:00:31]} Kf7 {[%emt 0:01:47]} 32. Qg5 {[%emt 0:01:09]} Qg7 {[%emt 0:00:30]} 33. Ne2 {[%emt 0:00:10]} Rh8 {[%emt 0:01:22]} 34. Kf3 {[%emt 0:02:01]} Rxh2 {[%emt 0:00:22]} 35. Ng3 {[%emt 0:00:01]} Qh7 {[%emt 0:01:38]} 36. Rg1 {[%emt 0:00:02]} Ke8 {[%emt 0:00:46]} 37. Qf6 {[%emt 0:00:09]} Kd7 {[%emt 0:00:11]} 38. Rg2 {[%emt 0:01:09]} Rh3 {[%emt 0:00:18]} 39. Qg5 {[%emt 0:00:09]} Ke6 {[%emt 0:00:30]} 40. Bf1 {[%emt 0:00:00]} Rh4 {[%emt 0:00:00]} 41. Rg1 {[%emt 0:02:38]} Rg4 {[%emt 0:02:10]} 0-1

[Event "European-ch Seniors 2018"]
[Site "Drammen"]
[Date "2018.08.07"]
[Round "4"]
[White "Johnsen, Sylvia"]
[Black "Birkholz, Olga"]
[Result "0-1"]
[ECO "A25"]
[WhiteElo "1977"]
[BlackElo "2048"]
[Annotator "NA"]
[PlyCount "88"]
[EventDate "2018.08.04"]
[EventType "swiss"]
[EventCountry "NOR"]
[SourceTitle "playchess.com"]
[Source "ChessBase"]
[SourceQuality "1"]
[TimeControl "40/5400+30:1800+30"]

1. c4 {[%emt 0:00:00]} g6 {[%emt 0:00:00]} 2. Nc3 {[%emt 0:00:00]} Bg7 {[%emt 0:00:01]} 3. g3 {[%emt 0:00:26]} e5 {[%emt 0:02:26]} 4. Bg2 {[%emt 0:00:11]} Nc6 {[%emt 0:02:40]} 5. d3 {[%emt 0:00:58]} Nge7 {[%emt 0:01:52]} 6. Bg5 {[%emt 0:04:13]} f6 {[%emt 0:03:06]} 7. Bd2 {[%emt 0:00:12]} O-O {[%emt 0:00:34]} 8. h4 {[%emt 0:15:52]} h6 {[%emt 0:08:15]} 9. e3 {[%emt 0:08:03]} d6 {[%emt 0:01:00]} 10. Nge2 {[%emt 0:00:11]} Nb4 {[%emt 0:10:22]} 11. Qb1 {[%emt 0:05:38]} c6 {[%emt 0:02:03]} 12. a3 {[%emt 0:00:25]} Na6 {[%emt 0:00:02]} 13. b4 {[%emt 0:00:16]} Nc7 {[%emt 0:03:07]} 14. d4 {[%emt 0:06:46]} Be6 {[%emt 0:03:06]} 15. d5 {[%emt 0:03:38]} cxd5 {[%emt 0:05:37]} 16. cxd5 {[%emt 0:01:14]} Bf7 {[%emt 0:00:58]} 17. e4 {[%emt 0:03:25]} Be8 {[%emt 0:04:03]} 18. a4 {[%emt 0:00:47]} f5 {[%emt 0:04:28]} 19. b5 {[%emt 0:12:34]} b6 {[%emt 0:05:43]} 20. Qd3 {[%emt 0:11:22]} a6 {[%emt 0:09:38]} 21. Rc1 {[%emt 0:05:03]} axb5 {[%emt 0:02:58]} 22. Nxb5 {[%emt 0:00:54]} Na6 {[%emt 0:00:20]} 23. Nec3 {[%emt 0:06:08]} Nc5 {[%emt 0:02:03]} 24. Qc4 {[%emt 0:00:20]} fxe4 {[%emt 0:08:40]} 25. Bxe4 {[%emt 0:00:28]} Nf5 {[%emt 0:03:02]} 26. Bc2 {[%emt 0:01:26]} Nd4 {[%emt 0:01:07]} 27. Nxd4 {[%emt 0:00:28]} exd4 {[%emt 0:00:01]} 28. Nb5 {[%emt 0:01:19]} d3 {[%emt 0:04:07]} 29. Bxd3 {[%emt 0:01:31]} Rxa4 {[%emt 0:00:26]} 30. Qc2 {[%emt 0:00:19]} Qe7+ {[%emt 0:03:15]} 31. Be3 {[%emt 0:02:00]} Rb4 {[%emt 0:01:01]} 32. Rb1 {[%emt 0:00:20]} Nxd3+ {[%emt 0:01:21]} 33. Kd2 {[%emt 0:00:30]} Rxb5 {[%emt 0:01:50]} 34. Qxd3 {[%emt 0:00:46]} Rxb1 {[%emt 0:00:32]} 35. Rxb1 {[%emt 0:00:05]} b5 {[%emt 0:00:13]} 36. Rb3 {[%emt 0:01:22]} Rf5 {[%emt 0:00:52]} 37. g4 {[%emt 0:02:07]} Rf8 {[%emt 0:01:25]} 38. Ra3 {[%emt 0:00:18]} Qxh4 {[%emt 0:00:45]} 39. Qe4 {[%emt 0:00:33]} Qf6 {[%emt 0:01:13]} 40. Ra7 {[%emt 0:00:00]} Qe5 {[%emt 0:00:00]} 41. Qxe5 {[%emt 0:01:54]} Bxe5 {[%emt 0:01:47]} 42. Bxh6 {[%emt 0:00:23]} Rxf2+ {[%emt 0:02:45]} 43. Kd3 {[%emt 0:00:37]} Bf7 {[%emt 0:07:48]} 44. Be3 {[%emt 0:01:17]} Rb2 {[%emt 0:01:18]} 0-1

[Event "European-ch Seniors 2018"]
[Site "Drammen"]
[Date "2018.08.07"]
[Round "4"]
[White "Baliuniene, Margarita"]
[Black "Strutinskaia, Galina"]
[Result "0-1"]
[ECO "A06"]
[WhiteElo "1937"]
[BlackElo "2208"]
[Annotator "NA"]
[PlyCount "96"]
[EventDate "2018.08.04"]
[EventType "swiss"]
[EventCountry "NOR"]
[SourceTitle "playchess.com"]
[Source "ChessBase"]
[SourceQuality "1"]
[TimeControl "40/5400+30:1800+30"]

1. Nf3 {[%emt 0:00:00]} d5 {[%emt 0:03:27]} 2. g3 {[%emt 0:00:00]} c6 {[%emt 0:00:26]} 3. Bg2 {[%emt 0:00:00]} Bf5 {[%emt 0:02:43]} 4. d4 {[%emt 0:00:16]} e6 {[%emt 0:01:20]} 5. Nbd2 {[%emt 0:00:30]} Nf6 {[%emt 0:01:45]} 6. O-O {[%emt 0:00:25]} h6 {[%emt 0:00:11]} 7. c4 {[%emt 0:00:50]} Be7 {[%emt 0:01:46]} 8. Ne5 {[%emt 0:03:57]} O-O {[%emt 0:01:13]} 9. Ndf3 {[%emt 0:01:05]} Ne4 {[%emt 0:00:45]} 10. Qb3 {[%emt 0:02:14]} Qc8 {[%emt 0:02:15]} 11. Bf4 {[%emt 0:04:22]} f6 {[%emt 0:03:50]} 12. Nd3 {[%emt 0:00:41]} Nd7 {[%emt 0:01:09]} 13. Rac1 {[%emt 0:08:32]} g5 {[%emt 0:03:43]} 14. Be3 {[%emt 0:00:49]} Rb8 {[%emt 0:03:32]} 15. cxd5 {[%emt 0:02:08]} exd5 {[%emt 0:00:23]} 16. Nd2 {[%emt 0:04:29]} Kg7 {[%emt 0:01:31]} 17. f3 {[%emt 0:03:02]} Nd6 {[%emt 0:01:11]} 18. Bf2 {[%emt 0:03:31]} Nb6 {[%emt 0:00:50]} 19. e4 {[%emt 0:02:01]} Be6 {[%emt 0:02:55]} 20. e5 {[%emt 0:05:55]} Ndc4 {[%emt 0:02:21]} 21. Qc3 {[%emt 0:01:33]} Bf5 {[%emt 0:07:09]} 22. b3 {[%emt 0:01:12]} Na3 {[%emt 0:01:05]} 23. Nc5 {[%emt 0:06:35]} Nd7 {[%emt 0:04:48]} 24. g4 {[%emt 0:01:56]} Nxc5 {[%emt 0:00:58]} 25. gxf5 {[%emt 0:00:33]} Na6 {[%emt 0:00:05]} 26. e6 {[%emt 0:00:51]} Nb4 {[%emt 0:01:15]} 27. Ra1 {[%emt 0:14:12]} Nb5 {[%emt 0:00:25]} 28. Qe3 {[%emt 0:08:17]} Nc2 {[%emt 0:01:36]} 29. Qd3 {[%emt 0:00:09]} Nxa1 {[%emt 0:01:05]} 30. Rxa1 {[%emt 0:00:05]} Bd6 {[%emt 0:05:09]} 31. a4 {[%emt 0:00:48]} Nc7 {[%emt 0:00:10]} 32. Nf1 {[%emt 0:01:54]} Rh8 {[%emt 0:05:28]} 33. Ne3 {[%emt 0:01:05]} Na6 {[%emt 0:01:15]} 34. Rc1 {[%emt 0:01:01]} Nb4 {[%emt 0:00:16]} 35. Qd2 {[%emt 0:02:23]} a5 {[%emt 0:00:11]} 36. Bg3 {[%emt 0:03:01]} Qc7 {[%emt 0:00:29]} 37. Kf2 {[%emt 0:01:07]} h5 {[%emt 0:00:20]} 38. Re1 {[%emt 0:02:47]} Kf8 {[%emt 0:03:10]} 39. Rh1 {[%emt 0:01:35]} Ke7 {[%emt 0:00:34]} 40. Bxd6+ {[%emt 0:00:00]} Qxd6 {[%emt 0:00:00]} 41. h4 {[%emt 0:02:14]} Qf4 {[%emt 0:00:44]} 42. hxg5 {[%emt 0:00:57]} Qxg5 {[%emt 0:00:14]} 43. Qe2 {[%emt 0:03:02]} Qf4 {[%emt 0:00:39]} 44. Qd1 {[%emt 0:02:38]} h4 {[%emt 0:01:45]} 45. Bh3 {[%emt 0:01:42]} Rbg8 {[%emt 0:04:02]} 46. Ng4 {[%emt 0:04:53]} Rg5 {[%emt 0:01:49]} 47. Ne3 {[%emt 0:02:28]} Rhg8 {[%emt 0:00:34]} 48. Bg4 {[%emt 0:01:05]} Rxg4 0-1